{"text_format":"2","workbook":"xlsx","n_sheets":1,"sheets":["ДЧБ"],"not_rendered":{"charts":0,"images":0,"macros":0,"external_links":0,"defined_names":4,"comments":0,"pivot_tables":0},"unopened":[],"bounds":{"document_bytes":16777216,"sheet_cells":100000,"run_cost":"one","rows_first":2000,"rows_last":500,"rows_between":2000,"halvings":0,"cell_chars":16384,"cell_head_chars":4096},"cells_cut":0,"cells_raw":0,"read":"whole","date_system":"1900"}

{"sheet":"ДЧБ","index":0,"n_rows":290,"n_cols":12,"rows_kept":290,"cut":false,"hidden":false,"merged":[[3,2,3,7],[4,2,4,7],[1,2,1,11],[2,0,2,11],[5,8,6,8],[5,9,5,11],[5,0,6,0],[5,1,6,1],[5,2,5,3],[5,4,6,4],[5,5,6,5],[5,6,6,6],[5,7,6,7]]}
[]
[null,null,"РЕЕСТР"]
["источников доходов районного бюджета Тонкинского муниципального района Нижегородской области"]
[]
[]
["Номер реестровой записи","Наименование группы источников доходов бюджетов/ наименование источника дохода бюджета","Классификация доходов бюджета",null,"Наименование главного администратора доходов бюджета","Код строки","Прогноз доходов бюджета на 2019 г.                                     (по состоянию на \"01\" ноября                           2019 г.)","Кассовые поступления по состоянию на                \"01\" ноября                    2019 г.","Оценка исполнения 2019 г. ","Прогноз доходов бюджета"]
[null,null,"код","наименование",{"$nulls":5},"на 2020 г.","на 2021 г.","на 2022 г."]
[1,2,3,4,5,6,7,8,9,10,11,12]
[{"$nulls":6},386048.21,331830.28999999998,{"$f":"I10+I170","v":388151.72},{"$f":"J10+J170","v":395379.5},{"$f":"K10+K170","v":376871.70000000007},{"$f":"L10+L170","v":386841.40000000008}]
[null,"НАЛОГОВЫЕ И НЕНАЛОГОВЫЕ ДОХОДЫ","000.1.00.00.00.0.00.0.000.000","НАЛОГОВЫЕ И НЕНАЛОГОВЫЕ ДОХОДЫ",null,null,57342.400000000001,46299.4,{"$f":"I11+I35+I60+I88+I105+I120+I131+I166","v":59445.900000000016},{"$f":"J11+J35+J60+J88+J105+J120+J131+J166","v":66338},{"$f":"K11+K35+K60+K88+K105+K120+K131+K166","v":69565.8},{"$f":"L11+L35+L60+L88+L105+L120+L131+L166","v":73858.2}]
[null,"НАЛОГИ НА ПРИБЫЛЬ, ДОХОДЫ","000.1.01.00.00.0.00.0.000.000","НАЛОГИ НА ПРИБЫЛЬ, ДОХОДЫ","Управление Федеральной налоговой службы по Нижегородской области",null,51646.5,40535.47,{"$f":"I12","v":52920.000000000007},{"$f":"J12","v":57870.1},{"$f":"K12","v":62094.6},66627.5]
[null,"Налог на доходы физических лиц","000.1.01.02.00.0.01.0.000.110","Налог на доходы физических лиц","Управление Федеральной налоговой службы по Нижегородской области",null,51646.5,40535.47,{"$f":"I13+I20+I25+I32","v":52920.000000000007},{"$f":"J13+J20+J25+J32","v":57870.1},{"$f":"K13+K20+K25+K32","v":62094.6},66627.5]
[null,null,"182.1.01.02.01.0.01.0.000.110","Налог на доходы физических лиц с доходов, источником которых является налоговый агент, за исключением доходов, в отношении которых исчисление и уплата налога осуществляются в соответствии со статьями 227, 227.1 и 228 Налогового кодекса Российской Федерации","Управление Федеральной налоговой службы по Нижегородской области",null,51428.7,40038.199999999997,52422.73,57168.1,61392.6,65925.5]
[null,null,"1.01.02.01.0.01.1.000.110","Налог на доходы физических лиц с доходов, источником которых является налоговый агент, за исключением доходов, в отношении которых исчисление и уплата налога осуществляются в соответствии со статьями 227, 227.1 и 228 Налогового кодекса Российской Федерации (сумма платежа (перерасчеты, недоимка и задолженность по соответствующему платежу, в том числе по отмененному)","Управление Федеральной налоговой службы по Нижегородской области",null,51428.7,39963.589999999997]
[null,null,"1.01.02.01.0.01.1.000.110","Налог на доходы физических лиц с доходов, источником которых является налоговый агент, за исключением доходов, в отношении которых исчисление и уплата налога осуществляются в соответствии со статьями 227, 227.1 и 228 Налогового кодекса Российской Федерации (сумма платежа (перерасчеты, недоимка и задолженность по соответствующему платежу, в том числе по отмененному)","Управление Федеральной налоговой службы по Нижегородской области",null,51428.7,39963.589999999997]
[null,null,"1.01.02.01.0.01.2.100.110","Налог на доходы физических лиц с доходов, источником которых является налоговый агент, за исключением доходов, в отношении которых исчисление и уплата налога осуществляются в соответствии со статьями 227, 227.1 и 228 Налогового кодекса Российской Федерации (пени по соответствующему платежу)","Управление Федеральной налоговой службы по Нижегородской области",null,0,24.74]
[null,null,"1.01.02.01.0.01.2.100.110","Налог на доходы физических лиц с доходов, источником которых является налоговый агент, за исключением доходов, в отношении которых исчисление и уплата налога осуществляются в соответствии со статьями 227, 227.1 и 228 Налогового кодекса Российской Федерации (пени по соответствующему платежу)","Управление Федеральной налоговой службы по Нижегородской области",null,0,24.74]
[null,null,"1.01.02.01.0.01.3.000.110","Налог на доходы физических лиц с доходов, источником которых является налоговый агент, за исключением доходов, в отношении которых исчисление и уплата налога осуществляются в соответствии со статьями 227, 227.1 и 228 Налогового кодекса Российской Федерации (суммы денежных взысканий (штрафов) по соответствующему платежу согласно законодательству Российской Федерации)","Управление Федеральной налоговой службы по Нижегородской области",null,0,49.87]
[null,null,"1.01.02.01.0.01.3.000.110","Налог на доходы физических лиц с доходов, источником которых является налоговый агент, за исключением доходов, в отношении которых исчисление и уплата налога осуществляются в соответствии со статьями 227, 227.1 и 228 Налогового кодекса Российской Федерации (суммы денежных взысканий (штрафов) по соответствующему платежу согласно законодательству Российской Федерации)","Управление Федеральной налоговой службы по Нижегородской области",null,0,49.87]
[null,null,"182.1.01.02.02.0.01.0.000.110","Налог на доходы физических лиц с доходов, полученных от осуществления деятельности физическими лицами, зарегистрированными в качестве индивидуальных предпринимателей, нотариусов, занимающихся частной практикой, адвокатов, учредивших адвокатские кабинеты, и других лиц, занимающихся частной практикой в соответствии со статьей 227 Налогового кодекса Российской Федерации","Управление Федеральной налоговой службы по Нижегородской области",null,163.80000000000001,399.65,399.65,621,621,621]
[null,null,"1.01.02.02.0.01.1.000.110","Налог на доходы физических лиц с доходов, полученных от осуществления деятельности физическими лицами, зарегистрированными в качестве индивидуальных предпринимателей, нотариусов, занимающихся частной практикой, адвокатов, учредивших адвокатские кабинеты, и других лиц, занимающихся частной практикой в соответствии со статьей 227 Налогового кодекса Российской Федерации (сумма платежа (перерасчеты, недоимка и задолженность по соответствующему платежу, в том числе по отмененному)","Управление Федеральной налоговой службы по Нижегородской области",null,163.80000000000001,399.57,399.57]
[null,null,"1.01.02.02.0.01.1.000.110","Налог на доходы физических лиц с доходов, полученных от осуществления деятельности физическими лицами, зарегистрированными в качестве индивидуальных предпринимателей, нотариусов, занимающихся частной практикой, адвокатов, учредивших адвокатские кабинеты, и других лиц, занимающихся частной практикой в соответствии со статьей 227 Налогового кодекса Российской Федерации (сумма платежа (перерасчеты, недоимка и задолженность по соответствующему платежу, в том числе по отмененному)","Управление Федеральной налоговой службы по Нижегородской области",null,163.80000000000001,399.57,399.57]
[null,null,"1.01.02.02.0.01.2.100.110","Налог на доходы физических лиц с доходов, полученных от осуществления деятельности физическими лицами, зарегистрированными в качестве индивидуальных предпринимателей, нотариусов, занимающихся частной практикой, адвокатов, учредивших адвокатские кабинеты, и других лиц, занимающихся частной практикой в соответствии со статьей 227 Налогового кодекса Российской Федерации (пени по соответствующему платежу)","Управление Федеральной налоговой службы по Нижегородской области",null,0,0.08,0.08]
[null,null,"1.01.02.02.0.01.2.100.110","Налог на доходы физических лиц с доходов, полученных от осуществления деятельности физическими лицами, зарегистрированными в качестве индивидуальных предпринимателей, нотариусов, занимающихся частной практикой, адвокатов, учредивших адвокатские кабинеты, и других лиц, занимающихся частной практикой в соответствии со статьей 227 Налогового кодекса Российской Федерации (пени по соответствующему платежу)","Управление Федеральной налоговой службы по Нижегородской области",null,0,0.08,0.08]
[null,null,"182.1.01.02.03.0.01.0.000.110","Налог на доходы физических лиц с доходов, полученных физическими лицами в соответствии со статьей 228 Налогового кодекса Российской Федерации","Управление Федеральной налоговой службы по Нижегородской области",null,54,12.14,12.14,81,81,81]
[null,null,"1.01.02.03.0.01.1.000.110","Налог на доходы физических лиц с доходов, полученных физическими лицами в соответствии со статьей 228 Налогового кодекса Российской Федерации (сумма платежа (перерасчеты, недоимка и задолженность по соответствующему платежу, в том числе по отмененному)","Управление Федеральной налоговой службы по Нижегородской области",null,54,6.5,6.5]
[null,null,"1.01.02.03.0.01.1.000.110","Налог на доходы физических лиц с доходов, полученных физическими лицами в соответствии со статьей 228 Налогового кодекса Российской Федерации (сумма платежа (перерасчеты, недоимка и задолженность по соответствующему платежу, в том числе по отмененному)","Управление Федеральной налоговой службы по Нижегородской области",null,54,6.5,6.5]
[null,null,"1.01.02.03.0.01.2.100.110","Налог на доходы физических лиц с доходов, полученных физическими лицами в соответствии со статьей 228 Налогового кодекса Российской Федерации (пени по соответствующему платежу)","Управление Федеральной налоговой службы по Нижегородской области",null,0,0.36,0.36]
[null,null,"1.01.02.03.0.01.2.100.110","Налог на доходы физических лиц с доходов, полученных физическими лицами в соответствии со статьей 228 Налогового кодекса Российской Федерации (пени по соответствующему платежу)","Управление Федеральной налоговой службы по Нижегородской области",null,0,0.36,0.36]
[null,null,"1.01.02.03.0.01.3.000.110","Налог на доходы физических лиц с доходов, полученных физическими лицами в соответствии со статьей 228 Налогового кодекса Российской Федерации (суммы денежных взысканий (штрафов) по соответствующему платежу согласно законодательству Российской Федерации)","Управление Федеральной налоговой службы по Нижегородской области",null,0,5.28,5.28]
[null,null,"1.01.02.03.0.01.3.000.110","Налог на доходы физических лиц с доходов, полученных физическими лицами в соответствии со статьей 228 Налогового кодекса Российской Федерации (суммы денежных взысканий (штрафов) по соответствующему платежу согласно законодательству Российской Федерации)","Управление Федеральной налоговой службы по Нижегородской области",null,0,5.28,5.28]
[null,null,"182.1.01.02.04.0.01.0.000.110","Налог на доходы физических лиц в виде фиксированных авансовых платежей с доходов, полученных физическими лицами, являющимися иностранными гражданами, осуществляющими трудовую деятельность по найму на основании патента в соответствии со статьей 227.1 Налогового кодекса Российской Федерации","Управление Федеральной налоговой службы по Нижегородской области",null,0,85.48,85.48]
[null,null,"1.01.02.04.0.01.1.000.110","Налог на доходы физических лиц в виде фиксированных авансовых платежей с доходов, полученных физическими лицами, являющимися иностранными гражданами, осуществляющими трудовую деятельность по найму на основании патента в соответствии со статьей 227.1 Налогового кодекса Российской Федерации (сумма платежа (перерасчеты, недоимка и задолженность по соответствующему платежу, в том числе по отмененному)","Управление Федеральной налоговой службы по Нижегородской области",null,0,85.48]
[null,null,"1.01.02.04.0.01.1.000.110","Налог на доходы физических лиц в виде фиксированных авансовых платежей с доходов, полученных физическими лицами, являющимися иностранными гражданами, осуществляющими трудовую деятельность по найму на основании патента в соответствии со статьей 227.1 Налогового кодекса Российской Федерации (сумма платежа (перерасчеты, недоимка и задолженность по соответствующему платежу, в том числе по отмененному)","Управление Федеральной налоговой службы по Нижегородской области",null,0,85.48]
[null,"НАЛОГИ НА СОВОКУПНЫЙ ДОХОД","000.1.05.00.00.0.00.0.000.000","НАЛОГИ НА СОВОКУПНЫЙ ДОХОД","Управление Федеральной налоговой службы по Нижегородской области",null,2350,3143.06,{"$f":"I36+I39+I50+I58","v":3184},{"$f":"J36+J39+J50+J58","v":4844.7000000000007},{"$f":"K36+K39+K50+K58","v":3725.7},3355.8999999999996]
[null,"Налог, взимаемый в связи с применением упрощенной системы налогообложения","182 1 05 01 00 0 00 0 000 110 ","Налог, взимаемый в связи с применением упрощенной системы налогообложения",{"$nulls":5},{"$f":"J37+J38","v":2100.3000000000002},{"$f":"K37+K38","v":2207.4},2308.9]
[null,null,"182 1 05 01 01 1 01 0 000 110 ","Налог, взимаемый с налогоплательщиков, выбравших в качестве объекта налогообложения доходы",{"$nulls":5},1853.9,1948.5,2038.1]
[null,null,"182 1 05 01 02 0 01 0 000 110 ","Налог, взимаемый с налогоплательщиков, выбравших в качестве объекта налогообложения доходы, уменьшенные на величину расходов",{"$nulls":5},246.4,258.89999999999998,270.8]
[null,"Единый налог на вмененный доход для отдельных видов деятельности","000.1.05.02.00.0.02.0.000.110","Единый налог на вмененный доход для отдельных видов деятельности","Управление Федеральной налоговой службы по Нижегородской области",null,2295.5,3059.07,{"$f":"I40+I47","v":3100},{"$f":"J40+J47","v":2657.8},{"$f":"K40+K47","v":632.6},0]
[null,null,"182.1.05.02.01.0.02.0.000.110","Единый налог на вмененный доход для отдельных видов деятельности","Управление Федеральной налоговой службы по Нижегородской области",null,2295.5,3058.84,3099.76,2657.8,632.6,0]
[null,null,"1.05.02.01.0.02.1.000.110","Единый налог на вмененный доход для отдельных видов деятельности (сумма платежа (перерасчеты, недоимка и задолженность по соответствующему платежу, в том числе по отмененному)","Управление Федеральной налоговой службы по Нижегородской области",null,2295.5,2977.12]
[null,null,"1.05.02.01.0.02.1.000.110","Единый налог на вмененный доход для отдельных видов деятельности (сумма платежа (перерасчеты, недоимка и задолженность по соответствующему платежу, в том числе по отмененному)","Управление Федеральной налоговой службы по Нижегородской области",null,2295.5,2977.12]
[null,null,"1.05.02.01.0.02.2.100.110","Единый налог на вмененный доход для отдельных видов деятельности (пени по соответствующему платежу)","Управление Федеральной налоговой службы по Нижегородской области",null,0,58.67]
[null,null,"1.05.02.01.0.02.2.100.110","Единый налог на вмененный доход для отдельных видов деятельности (пени по соответствующему платежу)","Управление Федеральной налоговой службы по Нижегородской области",null,0,58.67]
[null,null,"1.05.02.01.0.02.3.000.110","Единый налог на вмененный доход для отдельных видов деятельности (суммы денежных взысканий (штрафов) по соответствующему платежу согласно законодательству Российской Федерации)","Управление Федеральной налоговой службы по Нижегородской области",null,0,23.04]
[null,null,"1.05.02.01.0.02.3.000.110","Единый налог на вмененный доход для отдельных видов деятельности (суммы денежных взысканий (штрафов) по соответствующему платежу согласно законодательству Российской Федерации)","Управление Федеральной налоговой службы по Нижегородской области",null,0,23.04]
[null,null,"182.1.05.02.02.0.02.0.000.110","Единый налог на вмененный доход для отдельных видов деятельности (за налоговые периоды, истекшие до 1 января 2011 года)","Управление Федеральной налоговой службы по Нижегородской области",null,0,0.24,0.24]
[null,null,"1.05.02.02.0.02.2.100.110","Единый налог на вмененный доход для отдельных видов деятельности (за налоговые периоды, истекшие до 1 января 2011 года) (пени по соответствующему платежу)","Управление Федеральной налоговой службы по Нижегородской области",null,0,0.24]
[null,null,"1.05.02.02.0.02.2.100.110","Единый налог на вмененный доход для отдельных видов деятельности (за налоговые периоды, истекшие до 1 января 2011 года) (пени по соответствующему платежу)","Управление Федеральной налоговой службы по Нижегородской области",null,0,0.24]
[null,"Единый сельскохозяйственный налог","000.1.05.03.00.0.01.0.000.110","Единый сельскохозяйственный налог","Управление Федеральной налоговой службы по Нижегородской области",null,54.5,83.99,{"$f":"I51","v":84},{"$f":"J51","v":86.6},{"$f":"K51","v":88.4},90.2]
[null,null,"182.1.05.03.01.0.01.0.000.110","Единый сельскохозяйственный налог","Управление Федеральной налоговой службы по Нижегородской области",null,54.5,83.99,84,86.6,88.4,90.2]
[null,null,"1.05.03.01.0.01.1.000.110","Единый сельскохозяйственный налог (сумма платежа (перерасчеты, недоимка и задолженность по соответствующему платежу, в том числе по отмененному)","Управление Федеральной налоговой службы по Нижегородской области",null,54.5,83]
[null,null,"1.05.03.01.0.01.1.000.110","Единый сельскохозяйственный налог (сумма платежа (перерасчеты, недоимка и задолженность по соответствующему платежу, в том числе по отмененному)","Управление Федеральной налоговой службы по Нижегородской области",null,54.5,83]
[null,null,"1.05.03.01.0.01.2.100.110","Единый сельскохозяйственный налог (пени по соответствующему платежу)","Управление Федеральной налоговой службы по Нижегородской области",null,0,0.95]
[null,null,"1.05.03.01.0.01.2.100.110","Единый сельскохозяйственный налог (пени по соответствующему платежу)","Управление Федеральной налоговой службы по Нижегородской области",null,0,0.95]
[null,null,"1.05.03.01.0.01.3.000.110","Единый сельскохозяйственный налог (суммы денежных взысканий (штрафов) по соответствующему платежу согласно законодательству Российской Федерации)","Управление Федеральной налоговой службы по Нижегородской области",null,0,0.04]
[null,null,"1.05.03.01.0.01.3.000.110","Единый сельскохозяйственный налог (суммы денежных взысканий (штрафов) по соответствующему платежу согласно законодательству Российской Федерации)","Управление Федеральной налоговой службы по Нижегородской области",null,0,0.04]
[null,"Налог, взимаемый в связи с применением патентной системы налогообложения","182 1 05 04 00 0 02 0 000 110 ","Налог, взимаемый в связи с применением патентной системы налогообложения","Управление Федеральной налоговой службы по Нижегородской области",{"$nulls":4},{"$f":"J59","v":0},{"$f":"K59","v":797.3},956.8]
[null,null,"182 1 05 04 02 0 02 0 000 110 ","Налог, взимаемый в связи с применением патентной системы налогообложения, зачисляемый в бюджеты муниципальных районов","Управление Федеральной налоговой службы по Нижегородской области",{"$nulls":4},0,797.3,956.8]
[null,"ГОСУДАРСТВЕННАЯ ПОШЛИНА","000.1.08.00.00.0.00.0.000.000","ГОСУДАРСТВЕННАЯ ПОШЛИНА",null,null,889.3,921.08,{"$f":"I64+I67++I69+I73+I76+I79+I81+I85+I87","v":1092},{"$f":"J64+J67++J69+J73+J76+J79+J81+J85+J87","v":1219.2},{"$f":"K64+K67++K69+K73+K76+K79+K81+K85+K87","v":1268.0000000000002},1318.6000000000001]
[null,null,"1.08.03.00.0.01.0.000.110","Государственная пошлина по делам, рассматриваемым в судах общей юрисдикции, мировыми судьями","Управление Федеральной налоговой службы по Нижегородской области",null,677.4,470.49]
[null,null,"1.08.03.01.0.01.0.000.110","Государственная пошлина по делам, рассматриваемым в судах общей юрисдикции, мировыми судьями (за исключением Верховного Суда Российской Федерации)","Управление Федеральной налоговой службы по Нижегородской области",null,677.4,470.49]
[null,null,"1.08.03.01.0.01.1.000.110","Государственная пошлина по делам, рассматриваемым в судах общей юрисдикции, мировыми судьями (за исключением Верховного Суда Российской Федерации) (сумма платежа (перерасчеты, недоимка и задолженность по соответствующему платежу, в том числе по отмененному)","Управление Федеральной налоговой службы по Нижегородской области",null,677.4,470.49]
[null,null,"182.1.08.03.01.0.01.1.000.110","Государственная пошлина по делам, рассматриваемым в судах общей юрисдикции, мировыми судьями (за исключением Верховного Суда Российской Федерации) (сумма платежа (перерасчеты, недоимка и задолженность по соответствующему платежу, в том числе по отмененному)","Управление Федеральной налоговой службы по Нижегородской области",null,677.4,470.49,601,562.20000000000005,584.70000000000005,608.1]
[null,null,"1.08.06.00.0.01.0.000.110","Государственная пошлина за совершение действий, связанных с приобретением гражданства Российской Федерации или выходом из гражданства Российской Федерации, а также с въездом в Российскую Федерацию или выездом из Российской Федерации","Главное управление МВД России по Нижегородской области",null,2.1,14]
[null,null,"1.08.06.00.0.01.8.003.110","Государственная пошлина за совершение действий, связанных с приобретением гражданства Российской Федерации или выходом из гражданства Российской Федерации, а также с въездом в Российскую Федерацию или выездом из Российской Федерации (государственная пошлина за выдачу паспорта, удостоверяющего личность гражданина Российской Федерации за пределами территории Российской Федерации (при обращении через многофункциональные центры)","Главное управление МВД России по Нижегородской области",null,2.1,12]
[null,null,"188.1.08.06.00.0.01.8.003.110","Государственная пошлина за совершение действий, связанных с приобретением гражданства Российской Федерации или выходом из гражданства Российской Федерации, а также с въездом в Российскую Федерацию или выездом из Российской Федерации (государственная пошлина за выдачу паспорта, удостоверяющего личность гражданина Российской Федерации за пределами территории Российской Федерации (при обращении через многофункциональные центры)","Главное управление МВД России по Нижегородской области",null,2.1,12,15,23.9,24.9,25.9]
[null,null,"188.1.08.06.00.0.01.8.005.110","Государственная пошлина за совершение действий, связанных с приобретением гражданства Российской Федерации или выходом из гражданства Российской Федерации, а также с въездом в Российскую Федерацию или выездом из Российской Федерации (государственная пошлина за выдачу паспорта, удостоверяющего личность гражданина Российской Федерации за пределами территории Российской Федерации, гражданину Российской Федерации в возрасте до 14 лет (при обращении через многофункциональные центры)","Главное управление МВД России по Нижегородской области",null,0,2]
[null,null,"188.1.08.06.00.0.01.8.005.110","Государственная пошлина за совершение действий, связанных с приобретением гражданства Российской Федерации или выходом из гражданства Российской Федерации, а также с въездом в Российскую Федерацию или выездом из Российской Федерации (государственная пошлина за выдачу паспорта, удостоверяющего личность гражданина Российской Федерации за пределами территории Российской Федерации, гражданину Российской Федерации в возрасте до 14 лет (при обращении через многофункциональные центры)","Главное управление МВД России по Нижегородской области",null,0,2,2]
[null,null,"1.08.07.00.0.01.0.000.110","Государственная пошлина за государственную регистрацию, а также за совершение прочих юридически значимых действий",null,null,209.8,436.59]
[null,null,"1.08.07.01.0.01.0.000.110","Государственная пошлина за государственную регистрацию юридического лица, физических лиц в качестве индивидуальных предпринимателей, изменений, вносимых в учредительные документы юридического лица, за государственную регистрацию ликвидации юридического лица и другие юридически значимые действия","Управление Федеральной налоговой службы по Нижегородской области",null,2.1,0.24]
[null,null,"1.08.07.01.0.01.8.000.110","Государственная пошлина за государственную регистрацию юридического лица, физических лиц в качестве индивидуальных предпринимателей, изменений, вносимых в учредительные документы юридического лица, за государственную регистрацию ликвидации юридического лица и другие юридически значимые действия (при обращении через многофункциональные центры)","Управление Федеральной налоговой службы по Нижегородской области",null,2.1,0.24]
[null,null,"182.1.08.07.01.0.01.8.000.110","Государственная пошлина за государственную регистрацию юридического лица, физических лиц в качестве индивидуальных предпринимателей, изменений, вносимых в учредительные документы юридического лица, за государственную регистрацию ликвидации юридического лица и другие юридически значимые действия (при обращении через многофункциональные центры)","Управление Федеральной налоговой службы по Нижегородской области",null,2.1,0.24,1]
[null,null,"1.08.07.02.0.01.0.000.110","Государственная пошлина за государственную регистрацию прав, ограничений (обременений) прав на недвижимое имущество и сделок с ним","Управление Федеральной службы государственной регистрации, кадастра и картографии по Нижегородской области",null,122.7,127.67]
[null,null,"1.08.07.02.0.01.8.000.110","Государственная пошлина за государственную регистрацию прав, ограничений (обременений) прав на недвижимое имущество и сделок с ним (при обращении через многофункциональные центры)","Управление Федеральной службы государственной регистрации, кадастра и картографии по Нижегородской области",null,122.7,127.67]
[null,null,"321.1.08.07.02.0.01.8.000.110","Государственная пошлина за государственную регистрацию прав, ограничений (обременений) прав на недвижимое имущество и сделок с ним (при обращении через многофункциональные центры)","Управление Федеральной службы государственной регистрации, кадастра и картографии по Нижегородской области",null,122.7,127.67,130,212.3,220.8,229.6]
[null,null,"1.08.07.10.0.01.0.000.110","Государственная пошлина за выдачу и обмен паспорта гражданина Российской Федерации","Главное управление МВД России по Нижегородской области",null,71.7,38.25]
[null,null,"1.08.07.10.0.01.8.034.110","Государственная пошлина за выдачу и обмен паспорта гражданина Российской Федерации (государственная пошлина за выдачу паспорта гражданина Российской Федерации (при обращении через многофункциональные центры)","Главное управление МВД России по Нижегородской области",null,71.7,36]
[null,null,"188.1.08.07.10.0.01.8.034.110","Государственная пошлина за выдачу и обмен паспорта гражданина Российской Федерации (государственная пошлина за выдачу паспорта гражданина Российской Федерации (при обращении через многофункциональные центры)","Главное управление МВД России по Нижегородской области",null,71.7,36,40,38.4,39.9,41.4]
[null,null,"1.08.07.10.0.01.8.035.110","Государственная пошлина за выдачу и обмен паспорта гражданина Российской Федерации (государственная пошлина за выдачу паспорта гражданина Российской Федерации взамен утраченного или пришедшего в негодность (при обращении через многофункциональные центры)","Главное управление МВД России по Нижегородской области",null,0,2.25]
[null,null,"188.1.08.07.10.0.01.8.035.110","Государственная пошлина за выдачу и обмен паспорта гражданина Российской Федерации (государственная пошлина за выдачу паспорта гражданина Российской Федерации взамен утраченного или пришедшего в негодность (при обращении через многофункциональные центры)","Главное управление МВД России по Нижегородской области",null,0,2.25,3]
[null,null,"1.08.07.14.0.01.0.000.110","Государственная пошлина за государственную регистрацию транспортных средств и иные юридически значимые действия, связанные с изменениями и выдачей документов на транспортные средства, регистрационных знаков, водительских удостоверений","Главное управление МВД России по Нижегородской области",null,8.3000000000000007,270.43]
[null,null,"1.08.07.14.1.01.0.000.110","Государственная пошлина за государственную регистрацию транспортных средств и иные юридически значимые действия уполномоченных федеральных государственных органов, связанные с изменением и выдачей документов на транспортные средства, регистрационных знаков, водительских удостоверений","Главное управление МВД России по Нижегородской области",null,8.3000000000000007,270.43]
[null,null,"1.08.07.14.1.01.8.000.110","Государственная пошлина за государственную регистрацию транспортных средств и иные юридически значимые действия уполномоченных федеральных государственных органов, связанные с изменением и выдачей документов на транспортные средства, регистрационных знаков, водительских удостоверений (при обращении через многофункциональные центры)","Главное управление МВД России по Нижегородской области",null,8.3000000000000007,270.43]
[null,null,"188.1.08.07.14.1.01.8.000.110","Государственная пошлина за государственную регистрацию транспортных средств и иные юридически значимые действия уполномоченных федеральных государственных органов, связанные с изменением и выдачей документов на транспортные средства, регистрационных знаков, водительских удостоверений (при обращении через многофункциональные центры)","Главное управление МВД России по Нижегородской области",null,8.3000000000000007,270.43,300,377.4,392.5,408.2]
[null,null,"1.08.07.15.0.01.0.000.110","Государственная пошлина за выдачу разрешения на установку рекламной конструкции","Администрация Тонкинского муниципального  района Нижегородской области",null,5,0]
[null,null,"487.1.08.07.15.0.01.0.000.110","Государственная пошлина за выдачу разрешения на установку рекламной конструкции","Администрация Тонкинского муниципального  района Нижегородской области",null,5,0,0,5,5.2,5.4]
[null,"ДОХОДЫ ОТ ИСПОЛЬЗОВАНИЯ ИМУЩЕСТВА, НАХОДЯЩЕГОСЯ В ГОСУДАРСТВЕННОЙ И МУНИЦИПАЛЬНОЙ СОБСТВЕННОСТИ","366.1.11.00.00.0.00.0.000.000","ДОХОДЫ ОТ ИСПОЛЬЗОВАНИЯ ИМУЩЕСТВА, НАХОДЯЩЕГОСЯ В ГОСУДАРСТВЕННОЙ И МУНИЦИПАЛЬНОЙ СОБСТВЕННОСТИ","Комитет по управлению муниципальным имуществом и земельными ресурсами администрации Тонкинского муниципального района Нижегородской области",null,1937.6,1393.26,{"$f":"I89+I101","v":1915.0900000000001},{"$f":"J89+J101","v":2070.6},{"$f":"K89+K101","v":2151.7999999999997},2236.4]
[null,"Доходы, получаемые в виде арендной либо иной платы за передачу в возмездное пользование государственного и муниципального имущества (за исключением имущества бюджетных и автономных учреждений, а также имущества государственных и муниципальных унитарных предприятий, в том числе казенных)","366.1.11.05.00.0.00.0.000.120","Доходы, получаемые в виде арендной либо иной платы за передачу в возмездное пользование государственного и муниципального имущества (за исключением имущества бюджетных и автономных учреждений, а также имущества государственных и муниципальных унитарных предприятий, в том числе казенных)","Комитет по управлению муниципальным имуществом и земельными ресурсами администрации Тонкинского муниципального района Нижегородской области",null,1907.6,1357.81,{"$f":"I92+I94+I97+I100","v":1879.64},{"$f":"J92+J94+J97+J100","v":2035.6},{"$f":"K92+K94+K97+K100","v":2115.3999999999996},2198.5]
[null,null,"1.11.05.01.0.00.0.000.120","Доходы, получаемые в виде арендной платы за земельные участки, государственная собственность на которые не разграничена, а также средства от продажи права на заключение договоров аренды указанных земельных участков","Комитет по управлению муниципальным имуществом и земельными ресурсами администрации Тонкинского муниципального района Нижегородской области",null,907.1,808.36]
[null,null,"1.11.05.01.3.05.0.000.120","Доходы, получаемые в виде арендной платы за земельные участки, государственная собственность на которые не разграничена и которые расположены в границах сельских поселений и межселенных территорий муниципальных районов, а также средства от продажи права на заключение договоров аренды указанных земельных участков","Комитет по управлению муниципальным имуществом и земельными ресурсами администрации Тонкинского муниципального района Нижегородской области",null,194.8,265.02]
[null,null,"366.1.11.05.01.3.05.0.000.120","Доходы, получаемые в виде арендной платы за земельные участки, государственная собственность на которые не разграничена и которые расположены в границах сельских поселений и межселенных территорий муниципальных районов, а также средства от продажи права на заключение договоров аренды указанных земельных участков","Комитет по управлению муниципальным имуществом и земельными ресурсами администрации Тонкинского муниципального района Нижегородской области",null,194.8,265.02,270,289,289,289]
[null,null,"1.11.05.01.3.13.0.000.120","Доходы, получаемые в виде арендной платы за земельные участки, государственная собственность на которые не разграничена и которые расположены в границах городских поселений, а также средства от продажи права на заключение договоров аренды указанных земельных участков","Комитет по управлению муниципальным имуществом и земельными ресурсами администрации Тонкинского муниципального района Нижегородской области",null,712.3,543.34]
[null,null,"366.1.11.05.01.3.13.0.000.120","Доходы, получаемые в виде арендной платы за земельные участки, государственная собственность на которые не разграничена и которые расположены в границах городских поселений, а также средства от продажи права на заключение договоров аренды указанных земельных участков","Комитет по управлению муниципальным имуществом и земельными ресурсами администрации Тонкинского муниципального района Нижегородской области",null,712.3,543.34,763.7,723.5,759.8,797.5]
[null,null,"1.11.05.02.0.00.0.000.120","Доходы, получаемые в виде арендной платы за земли после разграничения государственной собственности на землю, а также средства от продажи права на заключение договоров аренды указанных земельных участков (за исключением земельных участков бюджетных и автономных учреждений)","Комитет по управлению муниципальным имуществом и земельными ресурсами администрации Тонкинского муниципального района Нижегородской области",null,70.7,89.14]
[null,null,"1.11.05.02.5.05.0.000.120","Доходы, получаемые в виде арендной платы, а также средства от продажи права на заключение договоров аренды за земли, находящиеся в собственности муниципальных районов (за исключением земельных участков муниципальных бюджетных и автономных учреждений)","Комитет по управлению муниципальным имуществом и земельными ресурсами администрации Тонкинского муниципального района Нижегородской области",null,70.7,89.14]
[null,null,"366.1.11.05.02.5.05.0.000.120","Доходы, получаемые в виде арендной платы, а также средства от продажи права на заключение договоров аренды за земли, находящиеся в собственности муниципальных районов (за исключением земельных участков муниципальных бюджетных и автономных учреждений)","Комитет по управлению муниципальным имуществом и земельными ресурсами администрации Тонкинского муниципального района Нижегородской области",null,70.7,89.14,89.14,76.2,76.099999999999994,76.099999999999994]
[null,"Доходы от сдачи в аренду имущества, составляющего государственную (муниципальную) казну (за исключением земельных участков)","366.1.11.05.07.0.00.0.000.120","Доходы от сдачи в аренду имущества, составляющего государственную (муниципальную) казну (за исключением земельных участков)","Комитет по управлению муниципальным имуществом и земельными ресурсами администрации Тонкинского муниципального района Нижегородской области",null,929.8,460.31]
[null,null,"1.11.05.07.5.05.0.000.120","Доходы от сдачи в аренду имущества, составляющего казну муниципальных районов (за исключением земельных участков)","Комитет по управлению муниципальным имуществом и земельными ресурсами администрации Тонкинского муниципального района Нижегородской области",null,929.8,460.31]
[null,null,"366.1.11.05.07.5.05.0.000.120","Доходы от сдачи в аренду имущества, составляющего казну муниципальных районов (за исключением земельных участков)","Комитет по управлению муниципальным имуществом и земельными ресурсами администрации Тонкинского муниципального района Нижегородской области",null,929.8,460.31,756.8,946.9,990.5,1035.9000000000001]
[null,"Платежи от государственных и муниципальных унитарных предприятий","366.1.11.07.00.0.00.0.000.120","Платежи от государственных и муниципальных унитарных предприятий","Комитет по управлению муниципальным имуществом и земельными ресурсами администрации Тонкинского муниципального района Нижегородской области",null,30,35.450000000000003,{"$f":"I104","v":35.450000000000003},{"$f":"J104","v":35},{"$f":"K104","v":36.4},37.9]
[null,null,"1.11.07.01.0.00.0.000.120","Доходы от перечисления части прибыли государственных и муниципальных унитарных предприятий, остающейся после уплаты налогов и обязательных платежей","Комитет по управлению муниципальным имуществом и земельными ресурсами администрации Тонкинского муниципального района Нижегородской области",null,30,35.450000000000003]
[null,null,"1.11.07.01.5.05.0.000.120","Доходы от перечисления части прибыли, остающейся после уплаты налогов и иных обязательных платежей муниципальных унитарных предприятий, созданных муниципальными районами","Комитет по управлению муниципальным имуществом и земельными ресурсами администрации Тонкинского муниципального района Нижегородской области",null,30,35.450000000000003]
[null,null,"366.1.11.07.01.5.05.0.000.120","Доходы от перечисления части прибыли, остающейся после уплаты налогов и иных обязательных платежей муниципальных унитарных предприятий, созданных муниципальными районами","Комитет по управлению муниципальным имуществом и земельными ресурсами администрации Тонкинского муниципального района Нижегородской области",null,30,35.450000000000003,35.450000000000003,35,36.4,37.9]
[null,"ПЛАТЕЖИ ПРИ ПОЛЬЗОВАНИИ ПРИРОДНЫМИ РЕСУРСАМИ","000.1.12.00.00.0.00.0.000.000","ПЛАТЕЖИ ПРИ ПОЛЬЗОВАНИИ ПРИРОДНЫМИ РЕСУРСАМИ","Федеральная служба по надзору в сфере природопользования",null,106,56.28,{"$f":"I106","v":65},{"$f":"J106","v":80.5},{"$f":"K106","v":83.699999999999989},87.1]
[null,"Плата за негативное воздействие на окружающую среду","000.1.12.01.00.0.01.0.000.120","Плата за негативное воздействие на окружающую среду","Федеральная служба по надзору в сфере природопользования",null,106,56.28,{"$f":"I109+I112+I116+I119","v":65},{"$f":"J109+J112+J116+J119","v":80.5},{"$f":"K109+K112+K116+K119","v":83.699999999999989},87.1]
[null,null,"1.12.01.01.0.01.0.000.120","Плата за выбросы загрязняющих веществ в атмосферный воздух стационарными объектами","Федеральная служба по надзору в сфере природопользования",null,35.200000000000003,14]
[null,null,"1.12.01.01.0.01.6.000.120","Плата за выбросы загрязняющих веществ в атмосферный воздух стационарными объектами (федеральные государственные органы, Банк России, органы управления государственными внебюджетными фондами Российской Федерации)","Федеральная служба по надзору в сфере природопользования",null,35.200000000000003,14]
[null,null,"048.1.12.01.01.0.01.6.000.120","Плата за выбросы загрязняющих веществ в атмосферный воздух стационарными объектами (федеральные государственные органы, Банк России, органы управления государственными внебюджетными фондами Российской Федерации)","Федеральная служба по надзору в сфере природопользования",null,35.200000000000003,14,14,31.6,32.9,34.200000000000003]
[null,null,"1.12.01.03.0.01.0.000.120","Плата за сбросы загрязняющих веществ в водные объекты","Федеральная служба по надзору в сфере природопользования",null,50.1,27.08]
[null,null,"1.12.01.03.0.01.6.000.120","Плата за сбросы загрязняющих веществ в водные объекты (федеральные государственные органы, Банк России, органы управления государственными внебюджетными фондами Российской Федерации)","Федеральная служба по надзору в сфере природопользования",null,50.1,27.08]
[null,null,"048.1.12.01.03.0.01.6.000.120","Плата за сбросы загрязняющих веществ в водные объекты (федеральные государственные органы, Банк России, органы управления государственными внебюджетными фондами Российской Федерации)","Федеральная служба по надзору в сфере природопользования",null,50.1,27.08,29.7,36.4,37.799999999999997,39.4]
[null,null,"1.12.01.04.0.01.0.000.120","Плата за размещение отходов производства и потребления","Федеральная служба по надзору в сфере природопользования",null,20.7,15.2]
[null,null,"1.12.01.04.1.01.0.000.120","Плата за размещение отходов производства","Федеральная служба по надзору в сфере природопользования",null,20.399999999999999,15.06]
[null,null,"1.12.01.04.1.01.6.000.120","Плата за размещение отходов производства (федеральные государственные органы, Банк России, органы управления государственными внебюджетными фондами Российской Федерации)","Федеральная служба по надзору в сфере природопользования",null,20.399999999999999,15.06]
[null,null,"048.1.12.01.04.1.01.6.000.120","Плата за размещение отходов производства (федеральные государственные органы, Банк России, органы управления государственными внебюджетными фондами Российской Федерации)","Федеральная служба по надзору в сфере природопользования",null,20.399999999999999,15.06,21,12.3,12.8,13.3]
[null,null,"1.12.01.04.2.01.0.000.120","Плата за размещение твердых коммунальных отходов","Федеральная служба по надзору в сфере природопользования",null,0.3,0.14000000000000001]
[null,null,"1.12.01.04.2.01.6.000.120","Плата за размещение твердых коммунальных отходов (федеральные государственные органы, Банк России, органы управления государственными внебюджетными фондами Российской Федерации)","Федеральная служба по надзору в сфере природопользования",null,0.3,0.14000000000000001]
[null,null,"048.1.12.01.04.2.01.6.000.120","Плата за размещение твердых коммунальных отходов (федеральные государственные органы, Банк России, органы управления государственными внебюджетными фондами Российской Федерации)","Федеральная служба по надзору в сфере природопользования",null,0.3,0.14000000000000001,0.3,0.2,0.2,0.2]
[null,"ДОХОДЫ ОТ ПРОДАЖИ МАТЕРИАЛЬНЫХ И НЕМАТЕРИАЛЬНЫХ АКТИВОВ","366.1.14.00.00.0.00.0.000.000","ДОХОДЫ ОТ ПРОДАЖИ МАТЕРИАЛЬНЫХ И НЕМАТЕРИАЛЬНЫХ АКТИВОВ","Комитет по управлению муниципальным имуществом и земельными ресурсами администрации Тонкинского муниципального района Нижегородской области",null,150,107.77,{"$f":"I121+I125","v":107.8},{"$f":"J121+J125","v":150},{"$f":"K121+K125","v":135},121.5]
[null,"Доходы от реализации имущества, находящегося в государственной и муниципальной собственности (за исключением движимого имущества бюджетных и автономных учреждений, а также имущества государственных и муниципальных унитарных предприятий, в том числе казенных)","366.1.14.02.00.0.00.0.000.000","Доходы от реализации имущества, находящегося в государственной и муниципальной собственности (за исключением движимого имущества бюджетных и автономных учреждений, а также имущества государственных и муниципальных унитарных предприятий, в том числе казенных)","Комитет по управлению муниципальным имуществом и земельными ресурсами администрации Тонкинского муниципального района Нижегородской области",null,100,71,{"$f":"I124","v":71},{"$f":"J124","v":50},{"$f":"K124","v":45},40.5]
[null,null,"1.14.02.05.0.05.0.000.410","Доходы от реализации имущества, находящегося в собственности муниципальных районов (за исключением движимого имущества муниципальных бюджетных и автономных учреждений, а также имущества муниципальных унитарных предприятий, в том числе казенных), в части реализации основных средств по указанному имуществу","Комитет по управлению муниципальным имуществом и земельными ресурсами администрации Тонкинского муниципального района Нижегородской области",null,100,71]
[null,null,"1.14.02.05.3.05.0.000.410","Доходы от реализации иного имущества, находящегося в собственности муниципальных районов (за исключением имущества муниципальных бюджетных и автономных учреждений, а также имущества муниципальных унитарных предприятий, в том числе казенных), в части реализации основных средств по указанному имуществу","Комитет по управлению муниципальным имуществом и земельными ресурсами администрации Тонкинского муниципального района Нижегородской области",null,100,71]
[null,null,"366.1.14.02.05.3.05.0.000.410","Доходы от реализации иного имущества, находящегося в собственности муниципальных районов (за исключением имущества муниципальных бюджетных и автономных учреждений, а также имущества муниципальных унитарных предприятий, в том числе казенных), в части реализации основных средств по указанному имуществу","Комитет по управлению муниципальным имуществом и земельными ресурсами администрации Тонкинского муниципального района Нижегородской области",null,100,71,71,50,45,40.5]
[null,"Доходы от продажи земельных участков, находящихся в государственной и муниципальной собственности","366.1.14.06.00.0.00.0.000.430","Доходы от продажи земельных участков, находящихся в государственной и муниципальной собственности","Комитет по управлению муниципальным имуществом и земельными ресурсами администрации Тонкинского муниципального района Нижегородской области",null,50,36.770000000000003,{"$f":"I128+I130","v":36.799999999999997},{"$f":"J128+J130","v":100},{"$f":"K128+K130","v":90},81]
[null,null,"1.14.06.01.0.00.0.000.430","Доходы от продажи земельных участков, государственная собственность на которые не разграничена","Комитет по управлению муниципальным имуществом и земельными ресурсами администрации Тонкинского муниципального района Нижегородской области",null,50,36.770000000000003]
[null,null,"1.14.06.01.3.05.0.000.430","Доходы от продажи земельных участков, государственная собственность на которые не разграничена и которые расположены в границах сельских поселений и межселенных территорий муниципальных районов","Комитет по управлению муниципальным имуществом и земельными ресурсами администрации Тонкинского муниципального района Нижегородской области",null,0,36.770000000000003]
[null,null,"366.1.14.06.01.3.05.0.000.430","Доходы от продажи земельных участков, государственная собственность на которые не разграничена и которые расположены в границах сельских поселений и межселенных территорий муниципальных районов","Комитет по управлению муниципальным имуществом и земельными ресурсами администрации Тонкинского муниципального района Нижегородской области",null,0,36.770000000000003,36.799999999999997]
[null,null,"1.14.06.01.3.13.0.000.430","Доходы от продажи земельных участков, государственная собственность на которые не разграничена и которые расположены в границах городских поселений","Комитет по управлению муниципальным имуществом и земельными ресурсами администрации Тонкинского муниципального района Нижегородской области",null,50,0]
[null,null,"366.1.14.06.01.3.13.0.000.430","Доходы от продажи земельных участков, государственная собственность на которые не разграничена и которые расположены в границах городских поселений","Комитет по управлению муниципальным имуществом и земельными ресурсами администрации Тонкинского муниципального района Нижегородской области",null,50,0,0,100,90,81]
[null,"ШТРАФЫ, САНКЦИИ, ВОЗМЕЩЕНИЕ УЩЕРБА","000.1.16.00.00.0.00.0.000.000","ШТРАФЫ, САНКЦИИ, ВОЗМЕЩЕНИЕ УЩЕРБА",null,null,231,115.34,{"$f":"I135+I138+I140+I143+I146+I149+I150+I153+I154+I158+I159+I160+I161+I163+I164+I165","v":130.01000000000002},{"$f":"J135+J138+J140+J143+J146+J149+J150+J153+J154+J158+J159+J160+J161+J163+J164+J165","v":72.900000000000006},75.8,78.8]
[null,null,"1.16.03.00.0.00.0.000.140","Денежные взыскания (штрафы) за нарушение законодательства о налогах и сборах","Управление Федеральной налоговой службы по Нижегородской области",null,0,0.1]
[null,null,"1.16.03.01.0.01.0.000.140","Денежные взыскания (штрафы) за нарушение законодательства о налогах и сборах, предусмотренные статьями 116, 119.1, 119.2, пунктами 1 и 2 статьи 120, статьями 125, 126, 126.1, 128, 129, 129.1, 129.4, 132, 133, 134, 135, 135.1, 135.2 Налогового кодекса Российской Федерации","Управление Федеральной налоговой службы по Нижегородской области",null,0,0.1]
[null,null,"1.16.03.01.0.01.6.000.140","Денежные взыскания (штрафы) за нарушение законодательства о налогах и сборах, предусмотренные статьями 116, 119.1, 119.2, пунктами 1 и 2 статьи 120, статьями 125, 126, 126.1, 128,129, 129.1, 129.4, 132, 133, 134, 135, 135.1, 135.2 Налогового кодекса Российской Федерации","Управление Федеральной налоговой службы по Нижегородской области",null,0,0.1]
[null,null,"182.1.16.03.01.0.01.6.000.140","Денежные взыскания (штрафы) за нарушение законодательства о налогах и сборах, предусмотренные статьями 116, 119.1, 119.2, пунктами 1 и 2 статьи 120, статьями 125, 126, 126.1, 128,129, 129.1, 129.4, 132, 133, 134, 135, 135.1, 135.2 Налогового кодекса Российской Федерации","Управление Федеральной налоговой службы по Нижегородской области",null,0,0.1,0.1]
[null,null,"1.16.25.00.0.00.0.000.140","Денежные взыскания (штрафы) за нарушение законодательства Российской Федерации о недрах, об особо охраняемых природных территориях, об охране и использовании животного мира, об экологической экспертизе, в области охраны окружающей среды, о рыболовстве и сохранении водных биологических ресурсов, земельного законодательства, лесного законодательства, водного законодательства",null,null,40,68.8,68.8]
[null,null,"1.16.25.03.0.01.0.000.140","Денежные взыскания (штрафы) за нарушение законодательства Российской Федерации об охране и использовании животного мира","Комитет по охране, использованию и воспроизводству объектов животного мира Нижегородской области",null,10,11.8,11.8]
[null,null,"072.1.16.25.03.0.01.0.000.140","Денежные взыскания (штрафы) за нарушение законодательства Российской Федерации об охране и использовании животного мира","Комитет по охране, использованию и воспроизводству объектов животного мира Нижегородской области",null,10,11.8,16.46]
[null,null,"1.16.25.05.0.01.0.000.140","Денежные взыскания (штрафы) за нарушение законодательства в области охраны окружающей среды","Министерство экологии и природных ресурсов Нижегородской области",null,20,22,22]
[null,null,"071.1.16.25.05.0.01.0.000.140","Денежные взыскания (штрафы) за нарушение законодательства в области охраны окружающей среды","Министерство экологии и природных ресурсов Нижегородской области",null,20,22,22]
[null,null,"1.16.25.06.0.01.0.000.140","Денежные взыскания (штрафы) за нарушение земельного законодательства","Управление Федеральной службы государственной регистрации, кадастра и картографии по Нижегородской области",null,10,35,35]
[null,null,"1.16.25.06.0.01.6.000.140","Денежные взыскания (штрафы) за нарушение земельного законодательства (федеральные государственные органы, Банк России, органы управления государственными внебюджетными фондами Российской Федерации)","Управление Федеральной службы государственной регистрации, кадастра и картографии по Нижегородской области",null,10,35,35]
[null,null,"321.1.16.25.06.0.01.6.000.140","Денежные взыскания (штрафы) за нарушение земельного законодательства (федеральные государственные органы, Банк России, органы управления государственными внебюджетными фондами Российской Федерации)","Управление Федеральной службы государственной регистрации, кадастра и картографии по Нижегородской области",null,10,35,45]
[null,null,"1.16.28.00.0.01.0.000.140","Денежные взыскания (штрафы) за нарушение законодательства в области обеспечения санитарно-эпидемиологического благополучия человека и законодательства в сфере защиты прав потребителей","Федеральная служба по надзору в сфере защиты прав потребителей и благополучия человека",null,10,0,0]
[null,null,"1.16.28.00.0.01.6.000.140","Денежные взыскания (штрафы) за нарушение законодательства в области обеспечения санитарно-эпидемиологического благополучия человека и законодательства в сфере защиты прав потребителей (федеральные государственные органы, Банк России, органы управления государственными внебюджетными фондами Российской Федерации)","Федеральная служба по надзору в сфере защиты прав потребителей и благополучия человека",null,10,0,0]
[null,null,"141.1.16.28.00.0.01.6.000.140","Денежные взыскания (штрафы) за нарушение законодательства в области обеспечения санитарно-эпидемиологического благополучия человека и законодательства в сфере защиты прав потребителей (федеральные государственные органы, Банк России, органы управления государственными внебюджетными фондами Российской Федерации)","Федеральная служба по надзору в сфере защиты прав потребителей и благополучия человека",null,10,0,0]
[null,null,"1.16.33.00.0.00.0.000.140","Денежные взыскания (штрафы) за нарушение законодательства Российской Федерации о контрактной системе в сфере закупок товаров, работ, услуг для обеспечения государственных и муниципальных нужд",null,null,35,9.27,9.27]
[null,null,"1.16.33.05.0.05.0.000.140","Денежные взыскания (штрафы) за нарушение законодательства Российской Федерации о контрактной системе в сфере закупок товаров, работ, услуг для обеспечения государственных и муниципальных нужд для нужд муниципальных районов",null,null,35,9.27,9.27]
[null,null,"131.1.16.33.05.0.05.0.000.140","Денежные взыскания (штрафы) за нарушение законодательства Российской Федерации о контрактной системе в сфере закупок товаров, работ, услуг для обеспечения государственных и муниципальных нужд для нужд муниципальных районов","Отдел архитектуры и строительства администрации Тонкинского муниципального района Нижегородской области",null,35,0,0]
[null,null,"487.1.16.33.05.0.05.0.000.140","Денежные взыскания (штрафы) за нарушение законодательства Российской Федерации о контрактной системе в сфере закупок товаров, работ, услуг для обеспечения государственных и муниципальных нужд для нужд муниципальных районов","Администрация Тонкинского муниципального  района Нижегородской области",null,0,9.27,9.27]
[null,null,"1.16.43.00.0.01.0.000.140","Денежные взыскания (штрафы) за нарушение законодательства Российской Федерации об административных правонарушениях, предусмотренные статьей 20.25 Кодекса Российской Федерации об административных правонарушениях",null,null,5,1.5,1.5]
[null,null,"1.16.43.00.0.01.6.000.140","Денежные взыскания (штрафы) за нарушение законодательства Российской Федерации об административных правонарушениях, предусмотренные статьей 20.25 Кодекса Российской Федерации об административных правонарушениях (федеральные государственные органы, Банк России, органы управления государственными внебюджетными фондами Российской Федерации)",null,null,5,1.5,1.5]
[null,null,"321.1.16.43.00.0.01.6.000.140","Денежные взыскания (штрафы) за нарушение законодательства Российской Федерации об административных правонарушениях, предусмотренные статьей 20.25 Кодекса Российской Федерации об административных правонарушениях (федеральные государственные органы, Банк России, органы управления государственными внебюджетными фондами Российской Федерации)","Управление Федеральной службы государственной регистрации, кадастра и картографии по Нижегородской области",null,5,0,0]
[null,null,"322.1.16.43.00.0.01.6.000.140","Денежные взыскания (штрафы) за нарушение законодательства Российской Федерации об административных правонарушениях, предусмотренные статьей 20.25 Кодекса Российской Федерации об административных правонарушениях (федеральные государственные органы, Банк России, органы управления государственными внебюджетными фондами Российской Федерации)","Федеральная служба судебных приставов",null,0,1.5,1.5]
[null,null,"1.16.90.00.0.00.0.000.140","Прочие поступления от денежных взысканий (штрафов) и иных сумм в возмещение ущерба",null,null,141,35.68,35.68]
[null,null,"1.16.90.05.0.05.0.000.140","Прочие поступления от денежных взысканий (штрафов) и иных сумм в возмещение ущерба, зачисляемые в бюджеты муниципальных районов",null,null,141,35.68,35.68]
[null,null,"1.16.90.05.0.05.0.000.140","Прочие поступления от денежных взысканий (штрафов) и иных сумм в возмещение ущерба, зачисляемые в бюджеты муниципальных районов",null,null,106,25.75,25.75]
[null,null,"001.1.16.90.05.0.05.0.000.140","Прочие поступления от денежных взысканий (штрафов) и иных сумм в возмещение ущерба, зачисляемые в бюджеты муниципальных районов","Управление финансов администрации Тонкинского муниципального района Нижегородской области",null,0,0.9,0.9]
[null,null,"176.1.16.90.05.0.05.0.000.140","Прочие поступления от денежных взысканий (штрафов) и иных сумм в возмещение ущерба, зачисляемые в бюджеты муниципальных районов","Департамент региональной безопасности Нижегородской области",null,50,0,0]
[null,null,"487.1.16.90.05.0.05.0.000.140","Прочие поступления от денежных взысканий (штрафов) и иных сумм в возмещение ущерба, зачисляемые в бюджеты муниципальных районов","Администрация Тонкинского муниципального  района Нижегородской области",null,26,26.45,26.45]
[null,null,"798.1.16.90.05.0.05.0.000.140","Прочие поступления от денежных взысканий (штрафов) и иных сумм в возмещение ущерба, зачисляемые в бюджеты муниципальных районов","Государственная жилищная инспекция Нижегородской области",null,30,0,0]
[null,null,"1.16.90.05.0.05.6.000.140","Прочие поступления от денежных взысканий (штрафов) и иных сумм в возмещение ущерба, зачисляемые в бюджеты муниципальных районов (федеральные государственные органы, Банк России, органы управления государственными внебюджетными фондами Российской Федерации)",null,null,35,9.93,9.93]
[null,null,"415.1.16.90.05.0.05.6.000.140","Прочие поступления от денежных взысканий (штрафов) и иных сумм в возмещение ущерба, зачисляемые в бюджеты муниципальных районов (федеральные государственные органы, Банк России, органы управления государственными внебюджетными фондами Российской Федерации)","Генеральная прокуратура Российской Федерации",null,35,8.33,8.33]
[null,null,"150 1 16 01 20 3 01 9 000 140 ","Административные штрафы, установленные Главой 20 Кодекса Российской Федерации об административных правонарушениях, за административные правонарушения, посягающие на общественный порядок и общественную безопасность, налагаемые мировыми судьями, комиссиями по делам несовершеннолетних и защите их прав ( иные штрафы)","Министерство социальной политики Нижегородской области",{"$nulls":4},37.9,39,41]
[null,null,"131 1 16 07 01 0 05 0 000 140 ","Штрафы, неустойки, пени, уплаченные в случае просрочки исполнения поставщиком (подрядчиком, исполнителем) обязательств, предусмотренных муниципальным контрактом, заключенным муниципальным органом, казенным учреждением муниципального района","Отдел архитектуры и строительства администрации Тонкинского муниципального района Нижегородской области",{"$nulls":4},35,36.799999999999997,37.799999999999997]
[null,"ПРОЧИЕ НЕНАЛОГОВЫЕ ДОХОДЫ","366.1.17.00.00.0.00.0.000.000","ПРОЧИЕ НЕНАЛОГОВЫЕ ДОХОДЫ","Комитет по управлению муниципальным имуществом и земельными ресурсами администрации Тонкинского муниципального района Нижегородской области",null,32,27.13,{"$f":"I167","v":32},{"$f":"J167","v":30},{"$f":"K167","v":31.2},32.4]
[null,"Прочие неналоговые доходы","366.1.17.05.00.0.00.0.000.180","Прочие неналоговые доходы","Комитет по управлению муниципальным имуществом и земельными ресурсами администрации Тонкинского муниципального района Нижегородской области",null,32,27.13,{"$f":"I169","v":32},{"$f":"J169","v":30},{"$f":"K169","v":31.2},32.4]
[null,null,"1.17.05.05.0.05.0.000.180","Прочие неналоговые доходы бюджетов муниципальных районов","Комитет по управлению муниципальным имуществом и земельными ресурсами администрации Тонкинского муниципального района Нижегородской области",null,32,27.13]
[null,null,"366.1.17.05.05.0.05.0.000.180","Прочие неналоговые доходы бюджетов муниципальных районов","Комитет по управлению муниципальным имуществом и земельными ресурсами администрации Тонкинского муниципального района Нижегородской области",null,32,27.13,32,30,31.2,32.4]
[null,"БЕЗВОЗМЕЗДНЫЕ ПОСТУПЛЕНИЯ","000.2.00.00.00.0.00.0.000.000","БЕЗВОЗМЕЗДНЫЕ ПОСТУПЛЕНИЯ",null,null,328705.81,285530.89,{"$f":"I171+I287","v":328705.81999999995},{"$f":"J171+J287","v":329041.5},{"$f":"K171+K287","v":307305.90000000008},312983.20000000007]
[null,"БЕЗВОЗМЕЗДНЫЕ ПОСТУПЛЕНИЯ ОТ ДРУГИХ БЮДЖЕТОВ БЮДЖЕТНОЙ СИСТЕМЫ РОССИЙСКОЙ ФЕДЕРАЦИИ","000.2.02.00.00.0.00.0.000.000","БЕЗВОЗМЕЗДНЫЕ ПОСТУПЛЕНИЯ ОТ ДРУГИХ БЮДЖЕТОВ БЮДЖЕТНОЙ СИСТЕМЫ РОССИЙСКОЙ ФЕДЕРАЦИИ",null,null,328932.31,285757.40000000002,{"$f":"I172+I181+I220+I266","v":328932.32999999996},{"$f":"J172+J181+J220+J266","v":329041.5},{"$f":"K172+K181+K220+K266","v":307305.90000000008},312983.20000000007]
[null,"Дотации бюджетам бюджетной системы Российской Федерации","001.2.02.10.00.0.00.0.000.150","Дотации бюджетам бюджетной системы Российской Федерации","Управление финансов администрации Тонкинского муниципального района Нижегородской области",null,128472.2,117766.25,{"$f":"I176+I180","v":128472.20000000001},{"$f":"J176+J180","v":146170.9},{"$f":"K176+K180","v":122760.8},126594.7]
[null,null,"2.02.15.00.1.00.0.000.150","Дотации на выравнивание бюджетной обеспеченности","Управление финансов администрации Тонкинского муниципального района Нижегородской области",null,128438.1,117734.98]
[null,null,"2.02.15.00.1.05.0.000.150","Дотации бюджетам муниципальных районов на выравнивание бюджетной обеспеченности","Управление финансов администрации Тонкинского муниципального района Нижегородской области",null,128438.1,117734.98]
[null,null,"2.02.15.00.1.05.0.220.150","Дотации бюджетам муниципальных районов на выравнивание бюджетной обеспеченности","Управление финансов администрации Тонкинского муниципального района Нижегородской области",null,128438.1,117734.98]
[null,null,"001.2.02.15.00.1.05.0.220.150","Дотации бюджетам муниципальных районов на выравнивание бюджетной обеспеченности","Управление финансов администрации Тонкинского муниципального района Нижегородской области",null,128438.1,117734.98,128438.1,135996.5,112760.8,116594.7]
[null,null,"2.02.15.00.2.00.0.000.150","Дотации бюджетам на поддержку мер по обеспечению сбалансированности бюджетов","Управление финансов администрации Тонкинского муниципального района Нижегородской области",null,34.1,31.28,34.1]
[null,null,"2.02.15.00.2.05.0.000.150","Дотации бюджетам муниципальных районов на поддержку мер по обеспечению сбалансированности бюджетов","Управление финансов администрации Тонкинского муниципального района Нижегородской области",null,34.1,31.28,34.1]
[null,null,"2.02.15.00.2.05.0.220.150","Дотации бюджетам муниципальных районов на поддержку мер по обеспечению сбалансированности бюджетов","Управление финансов администрации Тонкинского муниципального района Нижегородской области",null,34.1,31.28,34.1]
[null,null,"001.2.02.15.00.2.05.0.220.150","Дотации бюджетам муниципальных районов на поддержку мер по обеспечению сбалансированности бюджетов","Управление финансов администрации Тонкинского муниципального района Нижегородской области",null,34.1,31.28,34.1,10174.4,10000,10000]
[null,"Субсидии бюджетам бюджетной системы Российской Федерации (межбюджетные субсидии)","000.2.02.20.00.0.00.0.000.150","Субсидии бюджетам бюджетной системы Российской Федерации (межбюджетные субсидии)",null,null,33233.800000000003,24376.46,{"$f":"I185+I189+I193+I195+I199+I201+I205+I207+I211+I213+I217+I218+I219","v":33233.79},{"$f":"J185+J189+J193+J195+J199+J201+J205+J207+J211+J213+J217+J218+J219","v":3554.5},{"$f":"K185+K189+K193+K195+K199+K201+K205+K207+K211+K213+K217+K218+K219","v":3998},3489.2000000000003]
[null,null,"2.02.20.29.9.00.0.000.150","Субсидии бюджетам муниципальных образований на обеспечение мероприятий по переселению граждан из аварийного жилищного фонда, в том числе переселению граждан из аварийного жилищного фонда с учетом необходимости развития малоэтажного жилищного строительства, за счет средств, поступивших от государственной корпорации - Фонда содействия реформированию жилищно-коммунального хозяйства","Отдел архитектуры и строительства администрации Тонкинского муниципального района Нижегородской области",null,7618.86,2285.66]
[null,null,"2.02.20.29.9.05.0.000.150","Субсидии бюджетам муниципальных районов на обеспечение мероприятий по переселению граждан из аварийного жилищного фонда, в том числе переселению граждан из аварийного жилищного фонда с учетом необходимости развития малоэтажного жилищного строительства, за счет средств, поступивших от государственной корпорации - Фонда содействия реформированию жилищно-коммунального хозяйства","Отдел архитектуры и строительства администрации Тонкинского муниципального района Нижегородской области",null,7618.86,2285.66]
[null,null,"2.02.20.29.9.05.0.220.150","Субсидии бюджетам муниципальных районов на обеспечение мероприятий по переселению граждан из аварийного жилищного фонда, в том числе переселению граждан из аварийного жилищного фонда с учетом необходимости развития малоэтажного жилищного строительства, за счет средств, поступивших от государственной корпорации - Фонда содействия реформированию жилищно-коммунального хозяйства","Отдел архитектуры и строительства администрации Тонкинского муниципального района Нижегородской области",null,7618.86,2285.66]
[null,null,"131.2.02.20.29.9.05.0.220.150","Субсидии бюджетам муниципальных районов на обеспечение мероприятий по переселению граждан из аварийного жилищного фонда, в том числе переселению граждан из аварийного жилищного фонда с учетом необходимости развития малоэтажного жилищного строительства, за счет средств, поступивших от государственной корпорации - Фонда содействия реформированию жилищно-коммунального хозяйства","Отдел архитектуры и строительства администрации Тонкинского муниципального района Нижегородской области",null,7618.86,2285.66,7618.86]
[null,null,"2.02.20.30.2.00.0.000.150","Субсидии бюджетам муниципальных образований на обеспечение мероприятий по переселению граждан из аварийного жилищного фонда, в том числе переселению граждан из аварийного жилищного фонда с учетом необходимости развития малоэтажного жилищного строительства, за счет средств бюджетов","Отдел архитектуры и строительства администрации Тонкинского муниципального района Нижегородской области",null,285.83,285.83,285.83]
[null,null,"2.02.20.30.2.05.0.000.150","Субсидии бюджетам муниципальных районов на обеспечение мероприятий по переселению граждан из аварийного жилищного фонда, в том числе переселению граждан из аварийного жилищного фонда с учетом необходимости развития малоэтажного жилищного строительства, за счет средств бюджетов","Отдел архитектуры и строительства администрации Тонкинского муниципального района Нижегородской области",null,285.83,285.83,285.83]
[null,null,"2.02.20.30.2.05.0.220.150","Субсидии бюджетам муниципальных районов на обеспечение мероприятий по переселению граждан из аварийного жилищного фонда, в том числе переселению граждан из аварийного жилищного фонда с учетом необходимости развития малоэтажного жилищного строительства, за счет средств бюджетов","Отдел архитектуры и строительства администрации Тонкинского муниципального района Нижегородской области",null,285.83,285.83,285.83]
[null,null,"131.2.02.20.30.2.05.0.220.150","Субсидии бюджетам муниципальных районов на обеспечение мероприятий по переселению граждан из аварийного жилищного фонда, в том числе переселению граждан из аварийного жилищного фонда с учетом необходимости развития малоэтажного жилищного строительства, за счет средств бюджетов","Отдел архитектуры и строительства администрации Тонкинского муниципального района Нижегородской области",null,285.83,285.83,285.83,0,750.2,199.2]
[null,null,"2.02.25.46.7.00.0.000.150","Субсидии бюджетам на обеспечение развития и укрепления материально-технической базы домов культуры в населенных пунктах с числом жителей до 50 тысяч человек","Отдел культуры администрации Тонкинского муниципального района Нижегородской области",null,671.35,671.35,671.35]
[null,null,"2.02.25.46.7.05.0.000.150","Субсидии бюджетам муниципальных районов на обеспечение развития и укрепления материально-технической базы домов культуры в населенных пунктах с числом жителей до 50 тысяч человек","Отдел культуры администрации Тонкинского муниципального района Нижегородской области",null,671.35,671.35,671.35]
[null,null,"2.02.25.46.7.05.0.110.150","Субсидии бюджетам муниципальных районов на обеспечение развития и укрепления материально-технической базы домов культуры в населенных пунктах с числом жителей до 50 тысяч человек","Отдел культуры администрации Тонкинского муниципального района Нижегородской области",null,466.67,466.67,466.67]
[null,null,"057.2.02.25.46.7.05.0.110.150","Субсидии бюджетам муниципальных районов на обеспечение развития и укрепления материально-технической базы домов культуры в населенных пунктах с числом жителей до 50 тысяч человек","Отдел культуры администрации Тонкинского муниципального района Нижегородской области",null,466.67,466.67,466.67]
[null,null,"2.02.25.46.7.05.0.220.150","Субсидии бюджетам муниципальных районов на обеспечение развития и укрепления материально-технической базы домов культуры в населенных пунктах с числом жителей до 50 тысяч человек","Отдел культуры администрации Тонкинского муниципального района Нижегородской области",null,204.68,204.68,204.68]
[null,null,"057.2.02.25.46.7.05.0.220.150","Субсидии бюджетам муниципальных районов на обеспечение развития и укрепления материально-технической базы домов культуры в населенных пунктах с числом жителей до 50 тысяч человек","Отдел культуры администрации Тонкинского муниципального района Нижегородской области",null,204.68,204.68,204.68]
[null,null,"2.02.25.49.7.00.0.000.150","Субсидии бюджетам на реализацию мероприятий по обеспечению жильем молодых семей","Отдел архитектуры и строительства администрации Тонкинского муниципального района Нижегородской области",null,4981.18,4981.18,4981.18]
[null,null,"2.02.25.49.7.05.0.000.150","Субсидии бюджетам муниципальных районов на реализацию мероприятий по обеспечению жильем молодых семей","Отдел архитектуры и строительства администрации Тонкинского муниципального района Нижегородской области",null,4981.18,4981.18,4981.18]
[null,null,"2.02.25.49.7.05.0.110.150","Субсидии бюджетам муниципальных районов на реализацию мероприятий по обеспечению жильем молодых семей","Отдел архитектуры и строительства администрации Тонкинского муниципального района Нижегородской области",null,445.08,445.08,445.08]
[null,null,"131.2.02.25.49.7.05.0.110.150","Субсидии бюджетам муниципальных районов на реализацию мероприятий по обеспечению жильем молодых семей","Отдел архитектуры и строительства администрации Тонкинского муниципального района Нижегородской области",null,445.08,445.08,445.08,759.1,587.9,589.70000000000005]
[null,null,"2.02.25.49.7.05.0.220.150","Субсидии бюджетам муниципальных районов на реализацию мероприятий по обеспечению жильем молодых семей","Отдел архитектуры и строительства администрации Тонкинского муниципального района Нижегородской области",null,4536.1000000000004,4536.1000000000004,4536.1000000000004]
[null,null,"131.2.02.25.49.7.05.0.220.150","Субсидии бюджетам муниципальных районов на реализацию мероприятий по обеспечению жильем молодых семей","Отдел архитектуры и строительства администрации Тонкинского муниципального района Нижегородской области",null,4536.1000000000004,4536.1000000000004,4536.1000000000004,984.5,810.3,805.7]
[null,null,"2.02.25.51.9.00.0.000.150","Субсидия бюджетам на поддержку отрасли культуры","Отдел культуры администрации Тонкинского муниципального района Нижегородской области",null,2010.74,1947.6,2010.74]
[null,null,"2.02.25.51.9.05.0.000.150","Субсидия бюджетам муниципальных районов на поддержку отрасли культуры","Отдел культуры администрации Тонкинского муниципального района Нижегородской области",null,2010.74,1947.6,2010.74]
[null,null,"2.02.25.51.9.05.0.110.150","Субсидия бюджетам муниципальных районов на поддержку отрасли культуры","Отдел культуры администрации Тонкинского муниципального района Нижегородской области",null,1479.83,1433.1,1479.83]
[null,null,"057.2.02.25.51.9.05.0.110.150","Субсидия бюджетам муниципальных районов на поддержку отрасли культуры","Отдел культуры администрации Тонкинского муниципального района Нижегородской области",null,1479.83,1433.1,1479.83]
[null,null,"2.02.25.51.9.05.0.220.150","Субсидия бюджетам муниципальных районов на поддержку отрасли культуры","Отдел культуры администрации Тонкинского муниципального района Нижегородской области",null,530.91,514.5,530.91]
[null,null,"057.2.02.25.51.9.05.0.220.150","Субсидия бюджетам муниципальных районов на поддержку отрасли культуры","Отдел культуры администрации Тонкинского муниципального района Нижегородской области",null,530.91,514.5,530.91]
[null,null,"2.02.25.55.5.00.0.000.150","Субсидии бюджетам на реализацию программ формирования современной городской среды","Администрация Тонкинского муниципального  района Нижегородской области",null,2605.61,2605.59,2605.61]
[null,null,"2.02.25.55.5.05.0.000.150","Субсидии бюджетам муниципальных районов на реализацию программ формирования современной городской среды","Администрация Тонкинского муниципального  района Нижегородской области",null,2605.61,2605.59,2605.61]
[null,null,"2.02.25.55.5.05.0.110.150","Субсидии бюджетам муниципальных районов на поддержку государственных программ субъектов Российской Федерации и муниципальных программ формирования современной городской среды","Администрация Тонкинского муниципального  района Нижегородской области",null,2501.38,2501.37,2501.38]
[null,null,"487.2.02.25.55.5.05.0.110.150","Субсидии бюджетам муниципальных районов на поддержку государственных программ субъектов Российской Федерации и муниципальных программ формирования современной городской среды","Администрация Тонкинского муниципального  района Нижегородской области",null,2501.38,2501.37,2501.38]
[null,null,"2.02.25.55.5.05.0.220.150","Субсидии бюджетам муниципальных районов на поддержку государственных программ субъектов Российской Федерации и муниципальных программ формирования современной городской среды","Администрация Тонкинского муниципального  района Нижегородской области",null,104.22,104.22,104.22]
[null,null,"487.2.02.25.55.5.05.0.220.150","Субсидии бюджетам муниципальных районов на поддержку государственных программ субъектов Российской Федерации и муниципальных программ формирования современной городской среды","Администрация Тонкинского муниципального  района Нижегородской области",null,104.22,104.22,104.22,108.3,108.3,112.9]
[null,null,"2.02.29.99.9.00.0.000.150","Прочие субсидии",null,null,15060.23,11599.25,15060.23]
[null,null,"2.02.29.99.9.05.0.000.150","Прочие субсидии бюджетам муниципальных районов",null,null,15060.23,11599.25,15060.23]
[null,null,"2.02.29.99.9.05.0.220.150","Прочие субсидии бюджетам муниципальных районов",null,null,15060.23,11599.25,15060.23]
[null,null,"057.2.02.29.99.9.05.0.220.150","Прочие субсидии бюджетам муниципальных районов","Отдел культуры администрации Тонкинского муниципального района Нижегородской области",null,637,0,637]
[null,null,"074.2.02.29.99.9.05.0.220.150","Прочие субсидии бюджетам муниципальных районов","Управление образования и молодёжной политики администрации Тонкинского муниципального района Нижегородской области",null,5909.9,4828.3500000000004,5909.9]
[null,null,"487.2.02.29.99.9.05.0.220.150","Прочие субсидии бюджетам муниципальных районов","Администрация Тонкинского муниципального  района Нижегородской области",null,8513.33,6770.9,8513.33,1702.6,1741.3,1781.7]
[null,"Субвенции бюджетам бюджетной системы Российской Федерации","000.2.02.30.00.0.00.0.000.150","Субвенции бюджетам бюджетной системы Российской Федерации",null,null,137361.35,119611.74,{"$f":"I224+I225+I226+I227+I228+I232+I236+I238+I242+I246+I250+I251+I253+I257+I259+I263+I265","v":137361.37},{"$f":"J224+J225+J226+J227+J228+J232+J236+J238+J242+J246+J250+J251+J253+J257+J259+J263+J265","v":154043.20000000001},{"$f":"K224+K225+K226+K227+K228+K232+K236+K238+K242+K246+K250+K251+K253+K257+K259+K263+K265","v":155274.20000000007},157626.40000000005]
[null,null,"2.02.30.02.4.00.0.000.150","Субвенции местным бюджетам на выполнение передаваемых полномочий субъектов Российской Федерации",null,null,104007.78,90631.15]
[null,null,"2.02.30.02.4.05.0.000.150","Субвенции бюджетам муниципальных районов на выполнение передаваемых полномочий субъектов Российской Федерации",null,null,104007.78,90631.15]
[null,null,"2.02.30.02.4.05.0.220.150","Субвенции бюджетам муниципальных районов на выполнение передаваемых полномочий субъектов Российской Федерации",null,null,104007.78,90631.15]
[null,null,"001.2.02.30.02.4.05.0.220.150","Субвенции бюджетам муниципальных районов на выполнение передаваемых полномочий субъектов Российской Федерации","Управление финансов администрации Тонкинского муниципального района Нижегородской области",null,21653.3,21653.3,21653.3,24670.2,28544,29787]
[null,null,"074.2.02.30.02.4.05.0.220.150","Субвенции бюджетам муниципальных районов на выполнение передаваемых полномочий субъектов Российской Федерации","Управление образования и молодёжной политики администрации Тонкинского муниципального района Нижегородской области",null,72925.399999999994,60795.87,72925.399999999994,81604.600000000006,81615.100000000006,81626.399999999994]
[null,null,"082.2.02.30.02.4.05.0.220.150","Субвенции бюджетам муниципальных районов на выполнение передаваемых полномочий субъектов Российской Федерации","Управление сельского хозяйства администрации Тонкинского муниципального района Нижегородской области",null,8735.98,7528.88,8735.98,7529.4,7639.6,7661.3]
[null,null,"131.2.02.30.02.4.05.0.220.150","Субвенции бюджетам муниципальных районов на выполнение передаваемых полномочий субъектов Российской Федерации","Отдел архитектуры и строительства администрации Тонкинского муниципального района Нижегородской области",{"$nulls":4},0,66.599999999999994,0]
[null,null,"487.2.02.30.02.4.05.0.220.150","Субвенции бюджетам муниципальных районов на выполнение передаваемых полномочий субъектов Российской Федерации","Администрация Тонкинского муниципального  района Нижегородской области",null,693.1,653.1,693.1,708.3,708.3,708.3]
[null,null,"2.02.30.02.9.00.0.000.150","Субвенции бюджетам на компенсацию части платы, взимаемой с родителей (законных представителей) за присмотр и уход за детьми, посещающими образовательные организации, реализующие образовательные программы дошкольного образования","Управление образования и молодёжной политики администрации Тонкинского муниципального района Нижегородской области",null,1263.7,948.66,1263.7]
[null,null,"2.02.30.02.9.05.0.000.150","Субвенции бюджетам муниципальных районов на компенсацию части платы, взимаемой с родителей (законных представителей) за присмотр и уход за детьми, посещающими образовательные организации, реализующие образовательные программы дошкольного образования","Управление образования и молодёжной политики администрации Тонкинского муниципального района Нижегородской области",null,1263.7,948.66,1263.7]
[null,null,"2.02.30.02.9.05.0.220.150","Субвенции бюджетам муниципальных районов на компенсацию части платы, взимаемой с родителей (законных представителей) за присмотр и уход за детьми, посещающими образовательные организации, реализующие образовательные программы дошкольного образования","Управление образования и молодёжной политики администрации Тонкинского муниципального района Нижегородской области",null,1263.7,948.66,1263.7]
[null,null,"074.2.02.30.02.9.05.0.220.150","Субвенции бюджетам муниципальных районов на компенсацию части платы, взимаемой с родителей (законных представителей) за присмотр и уход за детьми, посещающими образовательные организации, реализующие образовательные программы дошкольного образования","Управление образования и молодёжной политики администрации Тонкинского муниципального района Нижегородской области",null,1263.7,948.66,1263.7,1402.3,1402.3,1402.3]
[null,null,"2.02.35.08.2.00.0.000.150","Субвенции бюджетам муниципальных образований на предоставление жилых помещений детям-сиротам и детям, оставшимся без попечения родителей, лицам из их числа по договорам найма специализированных жилых помещений","Комитет по управлению муниципальным имуществом и земельными ресурсами администрации Тонкинского муниципального района Нижегородской области",null,6632.85,3000,6632.85]
[null,null,"2.02.35.08.2.05.0.000.150","Субвенции бюджетам муниципальных районов на предоставление жилых помещений детям-сиротам и детям, оставшимся без попечения родителей, лицам из их числа по договорам найма специализированных жилых помещений","Комитет по управлению муниципальным имуществом и земельными ресурсами администрации Тонкинского муниципального района Нижегородской области",null,6632.85,3000,6632.85]
[null,null,"2.02.35.08.2.05.0.110.150","Субвенции бюджетам муниципальных районов на предоставление жилых помещений детям-сиротам и детям, оставшимся без попечения родителей, лицам из их числа по договорам найма специализированных жилых помещений","Комитет по управлению муниципальным имуществом и земельными ресурсами администрации Тонкинского муниципального района Нижегородской области",null,2688.31,0,2688.31]
[null,null,"366.2.02.35.08.2.05.0.110.150","Субвенции бюджетам муниципальных районов на предоставление жилых помещений детям-сиротам и детям, оставшимся без попечения родителей, лицам из их числа по договорам найма специализированных жилых помещений","Комитет по управлению муниципальным имуществом и земельными ресурсами администрации Тонкинского муниципального района Нижегородской области",null,2688.31,0,2688.31,1203.5,1075.5999999999999,1211.7]
[null,null,"2.02.35.08.2.05.0.220.150","Субвенции бюджетам муниципальных районов на предоставление жилых помещений детям-сиротам и детям, оставшимся без попечения родителей, лицам из их числа по договорам найма специализированных жилых помещений","Комитет по управлению муниципальным имуществом и земельными ресурсами администрации Тонкинского муниципального района Нижегородской области",null,3944.54,3000,3944.54]
[null,null,"366.2.02.35.08.2.05.0.220.150","Субвенции бюджетам муниципальных районов на предоставление жилых помещений детям-сиротам и детям, оставшимся без попечения родителей, лицам из их числа по договорам найма специализированных жилых помещений","Комитет по управлению муниципальным имуществом и земельными ресурсами администрации Тонкинского муниципального района Нижегородской области",null,3944.54,3000,3944.54,4948.3999999999996,5076.2,5965.4]
[null,null,"2.02.35.11.8.00.0.000.150","Субвенции бюджетам на осуществление первичного воинского учета на территориях, где отсутствуют военные комиссариаты","Управление финансов администрации Тонкинского муниципального района Нижегородской области",null,358.9,358.9,358.9]
[null,null,"2.02.35.11.8.05.0.000.150","Субвенции бюджетам муниципальных районов на осуществление первичного воинского учета на территориях, где отсутствуют военные комиссариаты","Управление финансов администрации Тонкинского муниципального района Нижегородской области",null,358.9,358.9,358.9]
[null,null,"2.02.35.11.8.05.0.110.150","Субвенции бюджетам муниципальных районов на осуществление первичного воинского учета на территориях, где отсутствуют военные комиссариаты","Управление финансов администрации Тонкинского муниципального района Нижегородской области",null,358.9,358.9,358.9]
[null,null,"001.2.02.35.11.8.05.0.110.150","Субвенции бюджетам муниципальных районов на осуществление первичного воинского учета на территориях, где отсутствуют военные комиссариаты","Управление финансов администрации Тонкинского муниципального района Нижегородской области",null,358.9,358.9,358.9,323.89999999999998,328.1,344]
[null,null,"2.02.35.12.0.00.0.000.150","Субвенции бюджетам на осуществление полномочий по составлению (изменению) списков кандидатов в присяжные заседатели федеральных судов общей юрисдикции в Российской Федерации","Администрация Тонкинского муниципального  района Нижегородской области",null,10.9,10.9,10.9]
[null,null,"2.02.35.12.0.05.0.000.150","Субвенции бюджетам муниципальных районов на осуществление полномочий по составлению (изменению) списков кандидатов в присяжные заседатели федеральных судов общей юрисдикции в Российской Федерации","Администрация Тонкинского муниципального  района Нижегородской области",null,10.9,10.9,10.9]
[null,null,"2.02.35.12.0.05.0.110.150","Субвенции бюджетам муниципальных районов на осуществление полномочий по составлению (изменению) списков кандидатов в присяжные заседатели федеральных судов общей юрисдикции в Российской Федерации","Администрация Тонкинского муниципального  района Нижегородской области",null,10.9,10.9,10.9]
[null,null,"487.2.02.35.12.0.05.0.110.150","Субвенции бюджетам муниципальных районов на осуществление полномочий по составлению (изменению) списков кандидатов в присяжные заседатели федеральных судов общей юрисдикции в Российской Федерации","Администрация Тонкинского муниципального  района Нижегородской области",null,10.9,10.9,10.9,19.3,20.6,91.1]
[null,null,"2.02.35.54.1.00.0.000.150","Субвенции бюджетам муниципальных образований на оказание несвязанной поддержки сельскохозяйственным товаропроизводителям в области растениеводства","Управление сельского хозяйства администрации Тонкинского муниципального района Нижегородской области",null,22994.69,22994.69,22994.69]
[null,null,"2.02.35.54.1.05.0.000.150","Субвенции бюджетам муниципальных районов на оказание несвязанной поддержки сельскохозяйственным товаропроизводителям в области растениеводства","Управление сельского хозяйства администрации Тонкинского муниципального района Нижегородской области",null,22994.69,22994.69,22994.69]
[null,null,"2.02.35.54.1.05.0.110.150","Субвенции бюджетам муниципальных районов на оказание несвязанной поддержки сельскохозяйственным товаропроизводителям в области растениеводства","Управление сельского хозяйства администрации Тонкинского муниципального района Нижегородской области",null,17016.07,17016.07,17016.07]
[null,null,"131.2.02.35.13.5.05.0.110.150","Субвенции бюджетам муниципальных районов на осуществление полномочий по обеспечению жильем отдельных категорий граждан, установленных Федеральным законом от 12 января 1995 года № 5-ФЗ \"О ветеранах\"","Отдел архитектуры и строительства администрации Тонкинского муниципального района Нижегородской области",{"$nulls":4},2833.1,0,0]
[null,null,"082.2.02.35.54.1.05.0.110.150","Субвенции бюджетам муниципальных районов на оказание несвязанной поддержки сельскохозяйственным товаропроизводителям в области растениеводства","Управление сельского хозяйства администрации Тонкинского муниципального района Нижегородской области",null,17016.07,17016.07,17016.07,16756.8,16772.900000000001,16776.7]
[null,null,"2.02.35.54.1.05.0.220.150","Субвенции бюджетам муниципальных районов на оказание несвязанной поддержки сельскохозяйственным товаропроизводителям в области растениеводства","Управление сельского хозяйства администрации Тонкинского муниципального района Нижегородской области",null,5978.62,5978.62,5978.62]
[null,null,"082.2.02.35.54.1.05.0.220.150","Субвенции бюджетам муниципальных районов на оказание несвязанной поддержки сельскохозяйственным товаропроизводителям в области растениеводства","Управление сельского хозяйства администрации Тонкинского муниципального района Нижегородской области",null,5978.62,5978.62,5978.62,7112.7,7113,7109.2]
[null,null,"2.02.35.54.2.00.0.000.150","Субвенции бюджетам муниципальных образований на повышение продуктивности в молочном скотоводстве","Управление сельского хозяйства администрации Тонкинского муниципального района Нижегородской области",null,1276.4000000000001,857.64,1276.4000000000001]
[null,null,"2.02.35.54.2.05.0.000.150","Субвенции бюджетам муниципальных районов на повышение продуктивности в молочном скотоводстве","Управление сельского хозяйства администрации Тонкинского муниципального района Нижегородской области",null,1276.4000000000001,857.64,1276.4000000000001]
[null,null,"2.02.35.54.2.05.0.110.150","Субвенции бюджетам муниципальных районов на повышение продуктивности в молочном скотоводстве","Управление сельского хозяйства администрации Тонкинского муниципального района Нижегородской области",null,832.8,634.65,832.8]
[null,null,"082.2.02.35.54.2.05.0.110.150","Субвенции бюджетам муниципальных районов на повышение продуктивности в молочном скотоводстве","Управление сельского хозяйства администрации Тонкинского муниципального района Нижегородской области",null,832.8,634.65,832.8,949.5,949.5,949.5]
[null,null,"2.02.35.54.2.05.0.220.150","Субвенции бюджетам муниципальных районов на повышение продуктивности в молочном скотоводстве","Управление сельского хозяйства администрации Тонкинского муниципального района Нижегородской области",null,443.6,222.99,443.6]
[null,null,"082.2.02.35.54.2.05.0.220.150","Субвенции бюджетам муниципальных районов на повышение продуктивности в молочном скотоводстве","Управление сельского хозяйства администрации Тонкинского муниципального района Нижегородской области",null,443.6,222.99,443.6,2191.1999999999998,2191.1999999999998,2191.1999999999998]
[null,null,"2.02.35.54.3.00.0.000.150","Субвенции бюджетам муниципальных образований на содействие достижению целевых показателей региональных программ развития агропромышленного комплекса","Управление сельского хозяйства администрации Тонкинского муниципального района Нижегородской области",null,816.14,809.81,816.14]
[null,null,"2.02.35.54.3.05.0.000.150","Субвенции бюджетам муниципальных районов на содействие достижению целевых показателей региональных программ развития агропромышленного комплекса","Управление сельского хозяйства администрации Тонкинского муниципального района Нижегородской области",null,816.14,809.81,816.14]
[null,null,"2.02.35.54.3.05.0.110.150","Субвенции бюджетам муниципальных районов на содействие достижению целевых показателей региональных программ развития агропромышленного комплекса","Управление сельского хозяйства администрации Тонкинского муниципального района Нижегородской области",null,603.95000000000005,599.26,603.95000000000005]
[null,null,"082.2.02.35.54.3.05.0.110.150","Субвенции бюджетам муниципальных районов на содействие достижению целевых показателей региональных программ развития агропромышленного комплекса","Управление сельского хозяйства администрации Тонкинского муниципального района Нижегородской области",null,603.95000000000005,599.26,603.95000000000005,542.6,491.5,485.7]
[null,null,"2.02.35.54.3.05.0.220.150","Субвенции бюджетам муниципальных районов на содействие достижению целевых показателей региональных программ развития агропромышленного комплекса","Управление сельского хозяйства администрации Тонкинского муниципального района Нижегородской области",null,212.2,210.55,212.2]
[null,null,"082.2.02.35.54.3.05.0.220.150","Субвенции бюджетам муниципальных районов на содействие достижению целевых показателей региональных программ развития агропромышленного комплекса","Управление сельского хозяйства администрации Тонкинского муниципального района Нижегородской области",null,212.2,210.55,212.2,1247.4000000000001,1279.7,1316.6]
[null,"Иные межбюджетные трансферты","000.2.02.40.00.0.00.0.000.150","Иные межбюджетные трансферты",null,null,29864.97,24002.95,{"$f":"I269+I270+I271+I272+I273+I277+I278+I279+I280+I284","v":29864.97},{"$f":"J269+J270+J271+J272+J273+J277+J278+J279+J280+J284","v":25272.9},{"$f":"K269+K270+K271+K272+K273+K277+K278+K279+K280+K284","v":25272.9},25272.9]
[null,null,"2.02.40.01.4.00.0.000.150","Межбюджетные трансферты, передаваемые бюджетам муниципальных образований на осуществление части полномочий по решению вопросов местного значения в соответствии с заключенными соглашениями",null,null,23568.7,18406.59]
[null,null,"2.02.40.01.4.05.0.000.150","Межбюджетные трансферты, передаваемые бюджетам муниципальных районов из бюджетов поселений на осуществление части полномочий по решению вопросов местного значения в соответствии с заключенными соглашениями",null,null,23568.7,18406.59]
[null,null,"001.2.02.40.01.4.05.0.000.150","Межбюджетные трансферты, передаваемые бюджетам муниципальных районов из бюджетов поселений на осуществление части полномочий по решению вопросов местного значения в соответствии с заключенными соглашениями","Управление финансов администрации Тонкинского муниципального района Нижегородской области",null,900,709.8,900,914,914,914]
[null,null,"057.2.02.40.01.4.05.0.000.150","Межбюджетные трансферты, передаваемые бюджетам муниципальных районов из бюджетов поселений на осуществление части полномочий по решению вопросов местного значения в соответствии с заключенными соглашениями","Отдел культуры администрации Тонкинского муниципального района Нижегородской области",null,21694.7,16927.93,21694.7,23371.200000000001,23371.200000000001,23371.200000000001]
[null,null,"131.2.02.40.01.4.05.0.000.150","Межбюджетные трансферты, передаваемые бюджетам муниципальных районов из бюджетов поселений на осуществление части полномочий по решению вопросов местного значения в соответствии с заключенными соглашениями","Отдел архитектуры и строительства администрации Тонкинского муниципального района Нижегородской области",null,450,355.29,450,457,457,457]
[null,null,"366.2.02.40.01.4.05.0.000.150","Межбюджетные трансферты, передаваемые бюджетам муниципальных районов из бюджетов поселений на осуществление части полномочий по решению вопросов местного значения в соответствии с заключенными соглашениями","Комитет по управлению муниципальным имуществом и земельными ресурсами администрации Тонкинского муниципального района Нижегородской области",null,450,355.29,450,457,457,457]
[null,null,"487.2.02.40.01.4.05.0.000.150","Межбюджетные трансферты, передаваемые бюджетам муниципальных районов из бюджетов поселений на осуществление части полномочий по решению вопросов местного значения в соответствии с заключенными соглашениями","Администрация Тонкинского муниципального  района Нижегородской области",null,74,58.28,74,73.7,73.7,73.7]
[null,null,"2.02.45.16.0.00.0.000.150","Межбюджетные трансферты, передаваемые бюджетам для компенсации дополнительных расходов, возникших в результате решений, принятых органами власти другого уровня",null,null,5596.36,5596.36,5596.36]
[null,null,"2.02.45.16.0.05.0.000.150","Межбюджетные трансферты, передаваемые бюджетам муниципальных районов для компенсации дополнительных расходов, возникших в результате решений, принятых органами власти другого уровня",null,null,5596.36,5596.36,5596.36]
[null,null,"2.02.45.16.0.05.0.220.150","Межбюджетные трансферты, передаваемые бюджетам муниципальных районов для компенсации дополнительных расходов, возникших в результате решений, принятых органами власти другого уровня",null,null,5596.36,5596.36,5596.36]
[null,null,"057.2.02.45.16.0.05.0.220.150","Межбюджетные трансферты, передаваемые бюджетам муниципальных районов для компенсации дополнительных расходов, возникших в результате решений, принятых органами власти другого уровня","Отдел культуры администрации Тонкинского муниципального района Нижегородской области",null,395.32,395.32,395.32]
[null,null,"074.2.02.45.16.0.05.0.220.150","Межбюджетные трансферты, передаваемые бюджетам муниципальных районов для компенсации дополнительных расходов, возникших в результате решений, принятых органами власти другого уровня","Управление образования и молодёжной политики администрации Тонкинского муниципального района Нижегородской области",null,886,886,886]
[null,null,"131.2.02.45.16.0.05.0.220.150","Межбюджетные трансферты, передаваемые бюджетам муниципальных районов для компенсации дополнительных расходов, возникших в результате решений, принятых органами власти другого уровня","Отдел архитектуры и строительства администрации Тонкинского муниципального района Нижегородской области",null,1913.04,1913.04,1913.04]
[null,null,"487.2.02.45.16.0.05.0.220.150","Межбюджетные трансферты, передаваемые бюджетам муниципальных районов для компенсации дополнительных расходов, возникших в результате решений, принятых органами власти другого уровня","Администрация Тонкинского муниципального  района Нижегородской области",null,2402,2402,2402]
[null,null,"2.02.49.99.9.00.0.000.150","Прочие межбюджетные трансферты, передаваемые бюджетам","Администрация Тонкинского муниципального  района Нижегородской области",null,699.91,0,699.91]
[null,null,"2.02.49.99.9.05.0.000.150","Прочие межбюджетные трансферты, передаваемые бюджетам муниципальных районов","Администрация Тонкинского муниципального  района Нижегородской области",null,699.91,0,699.91]
[null,null,"2.02.49.99.9.05.0.220.150","Прочие межбюджетные трансферты, передаваемые бюджетам муниципальных районов","Администрация Тонкинского муниципального  района Нижегородской области",null,699.91,0,699.91]
[null,null,"487.2.02.49.99.9.05.0.220.150","Прочие межбюджетные трансферты, передаваемые бюджетам муниципальных районов","Администрация Тонкинского муниципального  района Нижегородской области",null,699.91,0,699.91]
[null,"ВОЗВРАТ ОСТАТКОВ СУБСИДИЙ, СУБВЕНЦИЙ И ИНЫХ МЕЖБЮДЖЕТНЫХ ТРАНСФЕРТОВ, ИМЕЮЩИХ ЦЕЛЕВОЕ НАЗНАЧЕНИЕ, ПРОШЛЫХ ЛЕТ","000.2.19.00.00.0.00.0.000.000","ВОЗВРАТ ОСТАТКОВ СУБСИДИЙ, СУБВЕНЦИЙ И ИНЫХ МЕЖБЮДЖЕТНЫХ ТРАНСФЕРТОВ, ИМЕЮЩИХ ЦЕЛЕВОЕ НАЗНАЧЕНИЕ, ПРОШЛЫХ ЛЕТ",null,null,-226.51,-226.51,-226.51]
[null,null,"2.19.00.00.0.05.0.000.150","Возврат остатков субсидий, субвенций и иных межбюджетных трансфертов, имеющих целевое назначение, прошлых лет из бюджетов муниципальных районов",null,null,-226.51,-226.51,-226.51]
[null,"Возврат прочих остатков субсидий, субвенций и иных межбюджетных трансфертов, имеющих целевое назначение, прошлых лет из бюджетов муниципальных районов","000.2.19.60.01.0.05.0.000.150","Возврат прочих остатков субсидий, субвенций и иных межбюджетных трансфертов, имеющих целевое назначение, прошлых лет из бюджетов муниципальных районов",null,null,-226.51,-226.51,-226.51]
[null,null,"2.19.60.01.0.05.0.220.150","Возврат прочих остатков субсидий, субвенций и иных межбюджетных трансфертов, имеющих целевое назначение, прошлых лет из бюджетов муниципальных районов",null,null,-226.51,-226.51]
[null,null,"074.2.19.60.01.0.05.0.220.150","Возврат прочих остатков субсидий, субвенций и иных межбюджетных трансфертов, имеющих целевое назначение, прошлых лет из бюджетов муниципальных районов","Управление образования и молодёжной политики администрации Тонкинского муниципального района Нижегородской области",null,-42.6,-42.6,-42.6]
[null,null,"131.2.19.60.01.0.05.0.220.150","Возврат прочих остатков субсидий, субвенций и иных межбюджетных трансфертов, имеющих целевое назначение, прошлых лет из бюджетов муниципальных районов","Отдел архитектуры и строительства администрации Тонкинского муниципального района Нижегородской области",null,-183.91,-183.91,-183.91]